[Event "Titled Tuesday Blitz February 15 Early 2022"]
[White "Prohorov, Olexandr"]
[Black "Lohani, Sujana"]
[WhiteFideId "14105578"]
[BlackFideId "12311987"]
[WhiteElo "1993"]
[BlackElo "1691"]
[Result "1-0"]
[Round "07"]
[TimeControl "180+1"]
[Date "2022.02.15"]
[WhiteClock "0:00:52"]
[BlackClock "0:00:03"]

1. e4 {[%clk 0:03:00]}  b6 {[%clk 0:02:58]} 2. d4 {[%clk 0:03:00]}  Bb7 {[%clk 0:02:59]} 3. Nc3 {[%clk 0:03:01]}  c5 {[%clk 0:02:59]} 4. Nf3 {[%clk 0:02:48]}  cxd4 {[%clk 0:02:58]} 5. Nxd4 {[%clk 0:02:49]}  Nf6 {[%clk 0:02:53]} 6. f3 {[%clk 0:02:47]}  Nc6 {[%clk 0:02:50]} 7. Be2 {[%clk 0:02:47]}  g6 {[%clk 0:02:46]} 8. O-O {[%clk 0:02:47]}  Bg7 {[%clk 0:02:41]} 9. Be3 {[%clk 0:02:48]}  O-O {[%clk 0:02:39]} 10. Qd2 {[%clk 0:02:48]}  Rc8 {[%clk 0:02:09]} 11. Rad1 {[%clk 0:02:42]}  Nxd4 {[%clk 0:02:03]} 12. Bxd4 {[%clk 0:02:41]}  Qc7 {[%clk 0:02:03]} 13. Bd3 {[%clk 0:02:36]}  d5 {[%clk 0:01:41]} 14. e5 {[%clk 0:02:31]}  Nd7 {[%clk 0:01:31]} 15. f4 {[%clk 0:02:30]}  Nc5 {[%clk 0:01:30]} 16. Kh1 {[%clk 0:02:25]}  e6 {[%clk 0:01:28]} 17. Nb5 {[%clk 0:02:17]}  Qb8 {[%clk 0:01:23]} 18. Nd6 {[%clk 0:02:17]}  Rc7 {[%clk 0:01:19]} 19. c3 {[%clk 0:02:17]}  Ne4 {[%clk 0:00:55]} 20. Qe3 {[%clk 0:01:53]}  Nxd6 {[%clk 0:00:49]} 21. exd6 {[%clk 0:01:53]}  Rd7 {[%clk 0:00:47]} 22. Be5 {[%clk 0:01:53]}  f6 {[%clk 0:00:45]} 23. Bd4 {[%clk 0:01:53]}  Rxd6 {[%clk 0:00:45]} 24. Rde1 {[%clk 0:01:52]}  Re8 {[%clk 0:00:44]} 25. Qh3 {[%clk 0:01:50]}  e5 {[%clk 0:00:36]} 26. fxe5 {[%clk 0:01:48]}  fxe5 {[%clk 0:00:34]} 27. Qg3 {[%clk 0:01:43]}  exd4 {[%clk 0:00:28]} 28. Rxe8+ {[%clk 0:01:43]}  Qxe8 {[%clk 0:00:24]} 29. Qxd6 {[%clk 0:01:44]}  dxc3 {[%clk 0:00:22]} 30. bxc3 {[%clk 0:01:44]}  Bxc3 {[%clk 0:00:21]} 31. Qc7 {[%clk 0:01:42]}  Bc8 {[%clk 0:00:16]} 32. Qxc3 {[%clk 0:01:41]}  Be6 {[%clk 0:00:13]} 33. Qe5 {[%clk 0:01:40]}  Qd7 {[%clk 0:00:10]} 34. Re1 {[%clk 0:01:40]}  Bf7 {[%clk 0:00:10]} 35. Qf6 {[%clk 0:01:01]}  Qg4 {[%clk 0:00:03]} 36. Re7 {[%clk 0:00:52]} 1-0


[Site "https://www.chess.com"]

[Event "Titled Tuesday Blitz February 15 Early 2022"]
[White "Reprintsev, Alexander"]
[Black "Rodchenkov, Vitaly"]
[WhiteFideId "14100541"]
[BlackFideId "4152964"]
[WhiteElo "2126"]
[BlackElo "2337"]
[Result "1-0"]
[Round "07"]
[TimeControl "180+1"]
[Date "2022.02.15"]
[WhiteClock "0:00:51"]
[BlackClock "0:00:42"]

1. e4 {[%clk 0:02:42]}  c5 {[%clk 0:02:57]} 2. b3 {[%clk 0:02:42]}  d5 {[%clk 0:02:55]} 3. exd5 {[%clk 0:02:41]}  Qxd5 {[%clk 0:02:56]} 4. Nc3 {[%clk 0:02:40]}  Qd8 {[%clk 0:02:55]} 5. Bb2 {[%clk 0:02:39]}  Nf6 {[%clk 0:02:55]} 6. Qe2 {[%clk 0:02:39]}  Nc6 {[%clk 0:02:55]} 7. O-O-O {[%clk 0:02:39]}  Bg4 {[%clk 0:02:55]} 8. f3 {[%clk 0:02:37]}  Bh5 {[%clk 0:02:55]} 9. Nh3 {[%clk 0:02:33]}  e6 {[%clk 0:02:44]} 10. Nf4 {[%clk 0:02:32]}  Bg6 {[%clk 0:02:45]} 11. h4 {[%clk 0:02:31]}  Nd4 {[%clk 0:02:41]} 12. Qf2 {[%clk 0:02:06]}  Bd6 {[%clk 0:02:40]} 13. Nxg6 {[%clk 0:02:04]}  hxg6 {[%clk 0:02:39]} 14. Nb5 {[%clk 0:02:00]}  Nxb5 {[%clk 0:02:29]} 15. Bxb5+ {[%clk 0:02:00]}  Kf8 {[%clk 0:02:30]} 16. g4 {[%clk 0:01:58]}  a6 {[%clk 0:02:28]} 17. Bd3 {[%clk 0:01:51]}  Bf4 {[%clk 0:02:26]} 18. Qxc5+ {[%clk 0:01:43]}  Kg8 {[%clk 0:02:25]} 19. g5 {[%clk 0:01:31]}  Nd5 {[%clk 0:02:22]} 20. Be4 {[%clk 0:01:26]}  Qf8 {[%clk 0:01:31]} 21. Qd4 {[%clk 0:01:08]}  Bd6 {[%clk 0:01:14]} 22. Bxd5 {[%clk 0:01:07]}  exd5 {[%clk 0:01:14]} 23. Qxd5 {[%clk 0:01:07]}  Rd8 {[%clk 0:01:13]} 24. Qxb7 {[%clk 0:01:05]}  a5 {[%clk 0:01:07]} 25. a4 {[%clk 0:01:04]}  Ba3 {[%clk 0:01:02]} 26. Qb5 {[%clk 0:00:58]}  Bxb2+ {[%clk 0:01:01]} 27. Kxb2 {[%clk 0:00:58]}  Qd6 {[%clk 0:00:55]} 28. d4 {[%clk 0:00:55]}  Qf4 {[%clk 0:00:51]} 29. Qxa5 {[%clk 0:00:53]}  Rxd4 {[%clk 0:00:46]} 30. Rxd4 {[%clk 0:00:53]}  Qxd4+ {[%clk 0:00:46]} 31. Qc3 {[%clk 0:00:52]}  Qf4 {[%clk 0:00:42]} 32. a5 {[%clk 0:00:51]} 1-0


[Site "https://www.chess.com"]

[Event "Titled Tuesday Blitz February 15 Early 2022"]
[White "Riehle, Marco"]
[Black "Ronka, Erik"]
[WhiteFideId "12904392"]
[BlackFideId "505080"]
[WhiteElo "2462"]
[BlackElo "2264"]
[Result "1-0"]
[Round "07"]
[TimeControl "180+1"]
[Date "2022.02.15"]
[WhiteClock "0:01:15"]
[BlackClock "0:00:05"]

1. e4 {[%clk 0:03:00]}  c5 {[%clk 0:03:00]} 2. a3 {[%clk 0:03:00]}  g6 {[%clk 0:02:58]} 3. h4 {[%clk 0:02:55]}  h5 {[%clk 0:02:56]} 4. Nc3 {[%clk 0:02:53]}  Bg7 {[%clk 0:02:56]} 5. Bc4 {[%clk 0:02:52]}  Nc6 {[%clk 0:02:51]} 6. d3 {[%clk 0:02:52]}  d6 {[%clk 0:02:48]} 7. Bg5 {[%clk 0:02:51]}  Nf6 {[%clk 0:02:24]} 8. Qd2 {[%clk 0:02:46]}  Bd7 {[%clk 0:02:23]} 9. O-O-O {[%clk 0:02:43]}  Nd4 {[%clk 0:02:08]} 10. Nf3 {[%clk 0:02:27]}  b5 {[%clk 0:02:00]} 11. Ba2 {[%clk 0:02:22]}  Nxf3 {[%clk 0:01:28]} 12. gxf3 {[%clk 0:02:21]}  a5 {[%clk 0:01:29]} 13. Bxf6 {[%clk 0:02:18]}  Bxf6 {[%clk 0:01:18]} 14. Nd5 {[%clk 0:02:17]}  Bg7 {[%clk 0:01:15]} 15. Rhg1 {[%clk 0:02:15]}  b4 {[%clk 0:01:09]} 16. Qf4 {[%clk 0:02:13]}  Bh6 {[%clk 0:01:03]} 17. Rg5 {[%clk 0:02:11]}  f6 {[%clk 0:01:03]} 18. Rdg1 {[%clk 0:01:59]}  Rf8 {[%clk 0:00:58]} 19. Qg3 {[%clk 0:01:50]}  fxg5 {[%clk 0:00:56]} 20. hxg5 {[%clk 0:01:51]}  Bg7 {[%clk 0:00:56]} 21. a4 {[%clk 0:01:46]}  e6 {[%clk 0:00:49]} 22. Qxd6 {[%clk 0:01:41]}  exd5 {[%clk 0:00:41]} 23. Qxg6+ {[%clk 0:01:40]}  Ke7 {[%clk 0:00:26]} 24. Qxg7+ {[%clk 0:01:27]}  Kd6 {[%clk 0:00:26]} 25. Bxd5 {[%clk 0:01:26]}  Rc8 {[%clk 0:00:25]} 26. Qh6+ {[%clk 0:01:23]}  Kc7 {[%clk 0:00:23]} 27. Qa6 {[%clk 0:01:23]}  Rb8 {[%clk 0:00:18]} 28. g6 {[%clk 0:01:21]}  Qf6 {[%clk 0:00:16]} 29. Qa7+ {[%clk 0:01:16]}  Kd6 {[%clk 0:00:15]} 30. g7 {[%clk 0:01:15]}  Rg8 {[%clk 0:00:09]} 31. Rg6 {[%clk 0:01:15]}  Qxg6 {[%clk 0:00:08]} 32. Qa6+ {[%clk 0:01:15]}  Kc7 {[%clk 0:00:05]} 33. Qxg6 {[%clk 0:01:16]}  Rbe8 {[%clk 0:00:05]} 34. Bxg8 {[%clk 0:01:15]} 1-0


[Site "https://www.chess.com"]

[Event "Titled Tuesday Blitz February 15 Early 2022"]
[White "Rodchenkov, Sergey D."]
[Black "Mosutha, Thuso"]
[WhiteFideId "4168712"]
[BlackFideId "11302550"]
[WhiteElo "2306"]
[BlackElo "2028"]
[Result "1/2-1/2"]
[Round "07"]
[TimeControl "180+1"]
[Date "2022.02.15"]
[WhiteClock "0:00:19"]
[BlackClock "0:00:02"]

1. e4 {[%clk 0:03:00]}  e6 {[%clk 0:03:00]} 2. d4 {[%clk 0:03:00]}  d5 {[%clk 0:03:01]} 3. Nc3 {[%clk 0:03:00]}  Nf6 {[%clk 0:03:01]} 4. e5 {[%clk 0:03:01]}  Nfd7 {[%clk 0:03:02]} 5. f4 {[%clk 0:03:01]}  c5 {[%clk 0:03:02]} 6. Nf3 {[%clk 0:03:02]}  Nc6 {[%clk 0:03:02]} 7. Be3 {[%clk 0:03:02]}  cxd4 {[%clk 0:03:02]} 8. Nxd4 {[%clk 0:03:01]}  Bc5 {[%clk 0:03:03]} 9. Qd2 {[%clk 0:02:41]}  O-O {[%clk 0:03:02]} 10. O-O-O {[%clk 0:02:34]}  Nxd4 {[%clk 0:02:25]} 11. Bxd4 {[%clk 0:02:35]}  Bxd4 {[%clk 0:02:26]} 12. Qxd4 {[%clk 0:02:35]}  f6 {[%clk 0:02:27]} 13. exf6 {[%clk 0:02:03]}  Qxf6 {[%clk 0:02:28]} 14. g3 {[%clk 0:01:56]}  Qxd4 {[%clk 0:02:25]} 15. Rxd4 {[%clk 0:01:56]}  Nf6 {[%clk 0:02:18]} 16. Bg2 {[%clk 0:01:56]}  Bd7 {[%clk 0:02:18]} 17. Re1 {[%clk 0:01:51]}  Rfe8 {[%clk 0:02:18]} 18. Bf3 {[%clk 0:01:45]}  Bc6 {[%clk 0:02:17]} 19. Rd3 {[%clk 0:01:43]}  Nd7 {[%clk 0:02:07]} 20. Rd2 {[%clk 0:01:39]}  Rad8 {[%clk 0:02:03]} 21. Ne2 {[%clk 0:01:34]}  e5 {[%clk 0:01:50]} 22. Bxd5+ {[%clk 0:01:21]}  Bxd5 {[%clk 0:01:49]} 23. Rxd5 {[%clk 0:01:22]}  exf4 {[%clk 0:01:50]} 24. gxf4 {[%clk 0:01:22]}  Nf6 {[%clk 0:01:50]} 25. Rxd8 {[%clk 0:01:21]}  Rxd8 {[%clk 0:01:50]} 26. Ng3 {[%clk 0:01:07]}  g6 {[%clk 0:01:43]} 27. a4 {[%clk 0:01:06]}  Kf7 {[%clk 0:01:43]} 28. b3 {[%clk 0:01:04]}  Rd4 {[%clk 0:01:40]} 29. f5 {[%clk 0:01:02]}  g5 {[%clk 0:01:37]} 30. Rd1 {[%clk 0:00:56]}  Rf4 {[%clk 0:01:34]} 31. Rf1 {[%clk 0:00:53]}  Rh4 {[%clk 0:01:32]} 32. Rh1 {[%clk 0:00:43]}  h5 {[%clk 0:01:30]} 33. Kd2 {[%clk 0:00:35]}  Rf4 {[%clk 0:01:23]} 34. Rf1 {[%clk 0:00:34]}  Rd4+ {[%clk 0:01:21]} 35. Kc3 {[%clk 0:00:25]}  Rg4 {[%clk 0:01:20]} 36. Kd2 {[%clk 0:00:20]}  h4 {[%clk 0:01:19]} 37. Ne2 {[%clk 0:00:20]}  Rg2 {[%clk 0:01:15]} 38. h3 {[%clk 0:00:20]}  Ne4+ {[%clk 0:01:04]} 39. Ke3 {[%clk 0:00:20]}  Rxe2+ {[%clk 0:00:57]} 40. Kxe2 {[%clk 0:00:21]}  Ng3+ {[%clk 0:00:58]} 41. Kf2 {[%clk 0:00:20]}  Nxf1 {[%clk 0:00:58]} 42. Kxf1 {[%clk 0:00:21]}  Kf6 {[%clk 0:00:59]} 43. Kf2 {[%clk 0:00:22]}  Kxf5 {[%clk 0:01:00]} 44. Kf3 {[%clk 0:00:22]}  g4+ {[%clk 0:00:40]} 45. hxg4+ {[%clk 0:00:22]}  Kg5 {[%clk 0:00:41]} 46. a5 {[%clk 0:00:21]}  h3 {[%clk 0:00:41]} 47. Kg3 {[%clk 0:00:21]}  h2 {[%clk 0:00:41]} 48. Kxh2 {[%clk 0:00:22]}  Kxg4 {[%clk 0:00:42]} 49. Kg2 {[%clk 0:00:22]}  Kf4 {[%clk 0:00:43]} 50. Kf2 {[%clk 0:00:23]}  Ke4 {[%clk 0:00:44]} 51. Ke2 {[%clk 0:00:23]}  Kd4 {[%clk 0:00:44]} 52. Kd2 {[%clk 0:00:23]}  Kc5 {[%clk 0:00:44]} 53. c3 {[%clk 0:00:23]}  Kb5 {[%clk 0:00:34]} 54. b4 {[%clk 0:00:22]}  Kc4 {[%clk 0:00:35]} 55. Kc2 {[%clk 0:00:22]}  b6 {[%clk 0:00:23]} 56. axb6 {[%clk 0:00:17]}  axb6 {[%clk 0:00:24]} 57. Kd2 {[%clk 0:00:17]}  Kd5 {[%clk 0:00:03]} 58. Kd3 {[%clk 0:00:17]}  b5 {[%clk 0:00:03]} 59. Ke3 {[%clk 0:00:16]}  Ke5 {[%clk 0:00:03]} 60. Kd2 {[%clk 0:00:17]}  Ke6 {[%clk 0:00:02]} 61. Kd3 {[%clk 0:00:18]}  Kd5 {[%clk 0:00:02]} 62. Ke3 {[%clk 0:00:18]}  Ke5 {[%clk 0:00:03]} 63. Kd2 {[%clk 0:00:18]}  Ke6 {[%clk 0:00:03]} 64. Ke3 {[%clk 0:00:19]}  Ke5 {[%clk 0:00:02]} 1/2-1/2


[Site "https://www.chess.com"]

[Event "Titled Tuesday Blitz February 15 Early 2022"]
[White "Sadovsky, Artem"]
[Black "Nogerbek, Kazybek"]
[WhiteFideId "4155840"]
[BlackFideId "13710427"]
[WhiteElo "2369"]
[BlackElo "2478"]
[Result "1-0"]
[Round "07"]
[TimeControl "180+1"]
[Date "2022.02.15"]
[WhiteClock "0:01:46"]
[BlackClock "0:01:09"]

1. Nf3 {[%clk 0:03:00]}  d5 {[%clk 0:02:57]} 2. e3 {[%clk 0:03:01]}  Bf5 {[%clk 0:02:56]} 3. c4 {[%clk 0:03:01]}  e6 {[%clk 0:02:57]} 4. Qb3 {[%clk 0:02:52]}  Nc6 {[%clk 0:02:47]} 5. Qxb7 {[%clk 0:02:52]}  Nb4 {[%clk 0:02:45]} 6. Nd4 {[%clk 0:02:53]}  Bc5 {[%clk 0:02:08]} 7. Qb5+ {[%clk 0:02:49]}  Qd7 {[%clk 0:01:51]} 8. Qxc5 {[%clk 0:02:49]}  Nd3+ {[%clk 0:01:52]} 9. Bxd3 {[%clk 0:02:48]}  Bxd3 {[%clk 0:01:53]} 10. cxd5 {[%clk 0:02:45]}  exd5 {[%clk 0:01:43]} 11. Qc6 {[%clk 0:02:45]}  Nf6 {[%clk 0:01:42]} 12. Nc3 {[%clk 0:02:41]}  Ke7 {[%clk 0:01:28]} 13. Qxd7+ {[%clk 0:02:31]}  Kxd7 {[%clk 0:01:29]} 14. b4 {[%clk 0:02:25]}  a5 {[%clk 0:01:28]} 15. bxa5 {[%clk 0:02:19]}  c5 {[%clk 0:01:24]} 16. Nb3 {[%clk 0:02:19]}  c4 {[%clk 0:01:21]} 17. Nc5+ {[%clk 0:02:19]}  Kc6 {[%clk 0:01:21]} 18. Nxd3 {[%clk 0:02:19]}  cxd3 {[%clk 0:01:22]} 19. O-O {[%clk 0:02:02]}  Rxa5 {[%clk 0:01:20]} 20. Bb2 {[%clk 0:02:01]}  Rb8 {[%clk 0:01:19]} 21. Rab1 {[%clk 0:02:00]}  Ne4 {[%clk 0:01:16]} 22. Nxe4 {[%clk 0:01:58]}  dxe4 {[%clk 0:01:17]} 23. Bxg7 {[%clk 0:01:54]}  Rxb1 {[%clk 0:01:17]} 24. Rxb1 {[%clk 0:01:55]}  Rxa2 {[%clk 0:01:17]} 25. Bc3 {[%clk 0:01:54]}  f5 {[%clk 0:01:16]} 26. g4 {[%clk 0:01:51]}  fxg4 {[%clk 0:01:16]} 27. Kg2 {[%clk 0:01:52]}  h5 {[%clk 0:01:11]} 28. Rb4 {[%clk 0:01:52]}  Kd5 {[%clk 0:01:11]} 29. Rb5+ {[%clk 0:01:52]}  Kc4 {[%clk 0:01:10]} 30. Re5 {[%clk 0:01:53]}  Rxd2 {[%clk 0:01:09]} 31. Bxd2 {[%clk 0:01:46]} 1-0


[Site "https://www.chess.com"]

[Event "Titled Tuesday Blitz February 15 Early 2022"]
[White "Sahil, Tickoo"]
[Black "Politov, Pavel Y."]
[WhiteFideId "5019710"]
[BlackFideId "24110515"]
[WhiteElo "2099"]
[BlackElo "2090"]
[Result "1-0"]
[Round "07"]
[TimeControl "180+1"]
[Date "2022.02.15"]
[WhiteClock "0:00:33"]
[BlackClock "0:00:02"]

1. d4 {[%clk 0:03:00]}  Nf6 {[%clk 0:02:56]} 2. Bf4 {[%clk 0:02:53]}  d5 {[%clk 0:02:55]} 3. e3 {[%clk 0:02:53]}  e6 {[%clk 0:02:55]} 4. Nd2 {[%clk 0:02:52]}  c5 {[%clk 0:02:53]} 5. c3 {[%clk 0:02:52]}  Bd6 {[%clk 0:02:50]} 6. Bg3 {[%clk 0:02:51]}  Nc6 {[%clk 0:02:49]} 7. Ngf3 {[%clk 0:02:45]}  O-O {[%clk 0:02:40]} 8. Bd3 {[%clk 0:02:44]}  Qc7 {[%clk 0:02:36]} 9. dxc5 {[%clk 0:02:37]}  Bxg3 {[%clk 0:02:29]} 10. hxg3 {[%clk 0:02:38]}  h6 {[%clk 0:02:25]} 11. b4 {[%clk 0:02:31]}  e5 {[%clk 0:02:11]} 12. Be2 {[%clk 0:02:13]}  Bf5 {[%clk 0:01:53]} 13. O-O {[%clk 0:02:09]}  Rad8 {[%clk 0:01:47]} 14. a3 {[%clk 0:01:46]}  d4 {[%clk 0:00:56]} 15. cxd4 {[%clk 0:01:39]}  exd4 {[%clk 0:00:56]} 16. exd4 {[%clk 0:01:35]}  Nxd4 {[%clk 0:00:57]} 17. Nxd4 {[%clk 0:01:33]}  Rxd4 {[%clk 0:00:58]} 18. Qc1 {[%clk 0:01:32]}  Re8 {[%clk 0:00:26]} 19. Nf3 {[%clk 0:01:19]}  Rdd8 {[%clk 0:00:21]} 20. Bc4 {[%clk 0:01:13]}  Ng4 {[%clk 0:00:12]} 21. Qf4 {[%clk 0:01:09]}  Qxf4 {[%clk 0:00:11]} 22. gxf4 {[%clk 0:01:09]}  Bd3 {[%clk 0:00:05]} 23. Rfc1 {[%clk 0:01:02]}  Bxc4 {[%clk 0:00:05]} 24. Rxc4 {[%clk 0:01:03]}  Re2 {[%clk 0:00:04]} 25. Rf1 {[%clk 0:01:02]}  Ra2 {[%clk 0:00:04]} 26. Rc3 {[%clk 0:00:59]}  Re8 {[%clk 0:00:03]} 27. Nh2 {[%clk 0:00:49]}  Nxh2 {[%clk 0:00:02]} 28. Kxh2 {[%clk 0:00:49]}  Ree2 {[%clk 0:00:02]} 29. Kg3 {[%clk 0:00:48]}  Reb2 {[%clk 0:00:02]} 30. Rd3 {[%clk 0:00:46]}  Rc2 {[%clk 0:00:01]} 31. Rd7 {[%clk 0:00:43]}  Rxa3+ {[%clk 0:00:01]} 32. f3 {[%clk 0:00:41]}  b6 {[%clk 0:00:01]} 33. cxb6 {[%clk 0:00:37]}  axb6 {[%clk 0:00:02]} 34. f5 {[%clk 0:00:35]}  Rb2 {[%clk 0:00:02]} 35. Re1 {[%clk 0:00:33]}  Rxb4 {[%clk 0:00:02]} 36. Ree7 {[%clk 0:00:33]} 1-0


[Site "https://www.chess.com"]

[Event "Titled Tuesday Blitz February 15 Early 2022"]
[White "Sharapov, Evgeny"]
[Black "Samunenkov, Ihor"]
[WhiteFideId "14103133"]
[BlackFideId "14187086"]
[WhiteElo "2367"]
[BlackElo "2406"]
[Result "0-1"]
[Round "07"]
[TimeControl "180+1"]
[Date "2022.02.15"]
[WhiteClock "0:00:22"]
[BlackClock "0:00:56"]

1. e4 {[%clk 0:02:59]}  c5 {[%clk 0:02:59]} 2. Nf3 {[%clk 0:02:59]}  Nc6 {[%clk 0:02:59]} 3. d4 {[%clk 0:02:59]}  cxd4 {[%clk 0:03:00]} 4. Nxd4 {[%clk 0:02:59]}  g6 {[%clk 0:03:00]} 5. c4 {[%clk 0:02:59]}  Nf6 {[%clk 0:03:00]} 6. Nc3 {[%clk 0:02:59]}  d6 {[%clk 0:03:00]} 7. Be2 {[%clk 0:02:58]}  Nxd4 {[%clk 0:03:01]} 8. Qxd4 {[%clk 0:02:57]}  Bg7 {[%clk 0:03:02]} 9. Be3 {[%clk 0:02:57]}  O-O {[%clk 0:03:02]} 10. Qd2 {[%clk 0:02:57]}  a5 {[%clk 0:03:03]} 11. O-O {[%clk 0:02:57]}  a4 {[%clk 0:03:03]} 12. f3 {[%clk 0:02:55]}  Qa5 {[%clk 0:03:01]} 13. Rfc1 {[%clk 0:02:54]}  Be6 {[%clk 0:02:48]} 14. Rab1 {[%clk 0:02:53]}  Rfc8 {[%clk 0:02:46]} 15. b4 {[%clk 0:02:50]}  axb3 {[%clk 0:02:46]} 16. axb3 {[%clk 0:02:50]}  Qb4 {[%clk 0:02:44]} 17. Nb5 {[%clk 0:02:34]}  Qxd2 {[%clk 0:02:38]} 18. Bxd2 {[%clk 0:02:34]}  Nd7 {[%clk 0:02:20]} 19. Bc3 {[%clk 0:02:25]}  Bxc3 {[%clk 0:02:15]} 20. Nxc3 {[%clk 0:02:24]}  Nc5 {[%clk 0:02:02]} 21. b4 {[%clk 0:02:21]}  Na4 {[%clk 0:01:59]} 22. Nd5 {[%clk 0:02:19]}  Bxd5 {[%clk 0:01:58]} 23. exd5 {[%clk 0:02:17]}  Nb6 {[%clk 0:01:57]} 24. Kf2 {[%clk 0:02:09]}  Ra3 {[%clk 0:01:45]} 25. c5 {[%clk 0:01:44]}  Nxd5 {[%clk 0:01:18]} 26. cxd6 {[%clk 0:01:43]}  Rd8 {[%clk 0:01:16]} 27. dxe7 {[%clk 0:01:33]}  Nxe7 {[%clk 0:01:17]} 28. Rc7 {[%clk 0:01:28]}  Nd5 {[%clk 0:01:16]} 29. Rd1 {[%clk 0:01:12]}  Ra2 {[%clk 0:01:14]} 30. Ke1 {[%clk 0:00:40]}  Re8 {[%clk 0:01:01]} 31. Rxd5 {[%clk 0:00:31]}  Rexe2+ {[%clk 0:01:01]} 32. Kd1 {[%clk 0:00:27]}  Rxg2 {[%clk 0:01:00]} 33. Re5 {[%clk 0:00:22]}  Rg1+ {[%clk 0:00:55]} 34. Re1 {[%clk 0:00:22]}  Ra1+ {[%clk 0:00:56]} 0-1


[Site "https://www.chess.com"]

[Event "Titled Tuesday Blitz February 15 Early 2022"]
[White "Shevtchenko, Olesya"]
[Black "Vivas Zamora, Fabian Ernesto"]
[WhiteFideId "24131890"]
[BlackFideId "3902480"]
[WhiteElo "2003"]
[BlackElo "1966"]
[Result "1-0"]
[Round "07"]
[TimeControl "180+1"]
[Date "2022.02.15"]
[WhiteClock "0:00:33"]
[BlackClock "0:00:05"]

1. e4 {[%clk 0:03:00]}  e5 {[%clk 0:02:57]} 2. Nf3 {[%clk 0:03:00]}  Nc6 {[%clk 0:02:56]} 3. Bc4 {[%clk 0:03:00]}  Nf6 {[%clk 0:02:57]} 4. d3 {[%clk 0:02:59]}  Bc5 {[%clk 0:02:56]} 5. c3 {[%clk 0:02:58]}  O-O {[%clk 0:02:56]} 6. O-O {[%clk 0:02:58]}  d5 {[%clk 0:02:56]} 7. exd5 {[%clk 0:02:57]}  Nxd5 {[%clk 0:02:57]} 8. Re1 {[%clk 0:02:49]}  Bg4 {[%clk 0:02:56]} 9. Nbd2 {[%clk 0:02:49]}  Nb6 {[%clk 0:02:52]} 10. h3 {[%clk 0:02:32]}  Nxc4 {[%clk 0:02:44]} 11. Nxc4 {[%clk 0:02:26]}  Bxf3 {[%clk 0:02:22]} 12. Qxf3 {[%clk 0:02:27]}  Qf6 {[%clk 0:02:07]} 13. b4 {[%clk 0:02:21]}  Qxf3 {[%clk 0:02:00]} 14. gxf3 {[%clk 0:02:22]}  Bd6 {[%clk 0:01:57]} 15. b5 {[%clk 0:02:22]}  Ne7 {[%clk 0:01:52]} 16. Nxe5 {[%clk 0:02:21]}  Nd5 {[%clk 0:01:52]} 17. Bd2 {[%clk 0:02:15]}  Rfe8 {[%clk 0:01:46]} 18. d4 {[%clk 0:02:01]}  Bxe5 {[%clk 0:01:28]} 19. dxe5 {[%clk 0:01:57]}  Nb6 {[%clk 0:01:22]} 20. Be3 {[%clk 0:01:47]}  Nc4 {[%clk 0:01:21]} 21. Bd4 {[%clk 0:01:47]}  a6 {[%clk 0:01:16]} 22. a4 {[%clk 0:01:44]}  h5 {[%clk 0:01:11]} 23. f4 {[%clk 0:01:44]}  Kh7 {[%clk 0:01:10]} 24. Kg2 {[%clk 0:01:37]}  Kg6 {[%clk 0:01:09]} 25. Rab1 {[%clk 0:01:13]}  axb5 {[%clk 0:00:57]} 26. Rxb5 {[%clk 0:01:08]}  b6 {[%clk 0:00:55]} 27. Rb4 {[%clk 0:01:08]}  Na5 {[%clk 0:00:45]} 28. Be3 {[%clk 0:01:00]}  Kf5 {[%clk 0:00:42]} 29. Rd1 {[%clk 0:00:57]}  Red8 {[%clk 0:00:40]} 30. Rbd4 {[%clk 0:00:56]}  Nc6 {[%clk 0:00:32]} 31. Rd7 {[%clk 0:00:53]}  Ke6 {[%clk 0:00:26]} 32. f5+ {[%clk 0:00:53]}  Kxe5 {[%clk 0:00:21]} 33. R1d5+ {[%clk 0:00:49]}  Kf6 {[%clk 0:00:17]} 34. Bd4+ {[%clk 0:00:46]}  Nxd4 {[%clk 0:00:17]} 35. Rxd8 {[%clk 0:00:46]}  Rxd8 {[%clk 0:00:13]} 36. Rxd8 {[%clk 0:00:46]}  Nxf5 {[%clk 0:00:13]} 37. Rc8 {[%clk 0:00:45]}  Nd6 {[%clk 0:00:07]} 38. Rxc7 {[%clk 0:00:44]}  Ke5 {[%clk 0:00:07]} 39. Rc6 {[%clk 0:00:43]}  b5 {[%clk 0:00:07]} 40. Rxd6 {[%clk 0:00:40]}  Kxd6 {[%clk 0:00:07]} 41. axb5 {[%clk 0:00:41]}  Kc5 {[%clk 0:00:08]} 42. c4 {[%clk 0:00:41]}  g5 {[%clk 0:00:08]} 43. h4 {[%clk 0:00:37]}  f6 {[%clk 0:00:08]} 44. Kg3 {[%clk 0:00:37]}  Kb6 {[%clk 0:00:03]} 45. Kf3 {[%clk 0:00:36]}  Kc5 {[%clk 0:00:03]} 46. Ke4 {[%clk 0:00:35]}  f5+ {[%clk 0:00:03]} 47. Kf3 {[%clk 0:00:35]}  gxh4 {[%clk 0:00:02]} 48. Kg2 {[%clk 0:00:34]}  h3+ {[%clk 0:00:02]} 49. Kxh3 {[%clk 0:00:34]}  Kxc4 {[%clk 0:00:02]} 50. b6 {[%clk 0:00:34]}  Kd3 {[%clk 0:00:03]} 51. b7 {[%clk 0:00:33]}  Ke2 {[%clk 0:00:04]} 52. b8=Q {[%clk 0:00:33]}  Kxf2 {[%clk 0:00:05]} 53. Qf4+ {[%clk 0:00:33]} 1-0


[Site "https://www.chess.com"]

[Event "Titled Tuesday Blitz February 15 Early 2022"]
[White "Shuvalov, Evgenij"]
[Black "Shukhman, Anna"]
[WhiteFideId "4187237"]
[BlackFideId "54180058"]
[WhiteElo "2119"]
[BlackElo "1628"]
[Result "0-1"]
[Round "07"]
[TimeControl "180+1"]
[Date "2022.02.15"]
[WhiteClock "0:00:05"]
[BlackClock "0:00:20"]

1. b4 {[%clk 0:02:57]}  e5 {[%clk 0:02:57]} 2. Bb2 {[%clk 0:02:57]}  Bxb4 {[%clk 0:02:56]} 3. Bxe5 {[%clk 0:02:57]}  Nf6 {[%clk 0:02:56]} 4. Nc3 {[%clk 0:02:57]}  O-O {[%clk 0:02:55]} 5. Nf3 {[%clk 0:02:57]}  Nc6 {[%clk 0:02:52]} 6. Bxf6 {[%clk 0:02:57]}  Qxf6 {[%clk 0:02:51]} 7. Nd5 {[%clk 0:02:57]}  Qf5 {[%clk 0:02:33]} 8. Nxc7 {[%clk 0:02:31]}  Rb8 {[%clk 0:02:31]} 9. c4 {[%clk 0:02:31]}  Ne5 {[%clk 0:02:26]} 10. Nxe5 {[%clk 0:02:05]}  Qxe5 {[%clk 0:02:24]} 11. Nd5 {[%clk 0:02:05]}  Bd6 {[%clk 0:02:11]} 12. e3 {[%clk 0:01:57]}  b5 {[%clk 0:02:09]} 13. d4 {[%clk 0:01:48]}  Qg5 {[%clk 0:02:03]} 14. Rb1 {[%clk 0:01:39]}  bxc4 {[%clk 0:01:46]} 15. Rxb8 {[%clk 0:01:38]}  Bxb8 {[%clk 0:01:46]} 16. Qf3 {[%clk 0:01:16]}  Bb7 {[%clk 0:01:41]} 17. Bxc4 {[%clk 0:00:50]}  Rc8 {[%clk 0:01:10]} 18. Nf6+ {[%clk 0:00:41]}  Qxf6 {[%clk 0:01:09]} 19. Qxb7 {[%clk 0:00:41]}  Qd8 {[%clk 0:01:01]} 20. Qd5 {[%clk 0:00:37]}  Qc7 {[%clk 0:01:00]} 21. Qxf7+ {[%clk 0:00:34]}  Kh8 {[%clk 0:00:59]} 22. Bb3 {[%clk 0:00:21]}  Qc1+ {[%clk 0:00:51]} 23. Bd1 {[%clk 0:00:21]}  Qc3+ {[%clk 0:00:50]} 24. Kf1 {[%clk 0:00:21]}  Qd3+ {[%clk 0:00:46]} 25. Ke1 {[%clk 0:00:18]}  Bd6 {[%clk 0:00:44]} 26. Qb3 {[%clk 0:00:16]}  Rc3 {[%clk 0:00:32]} 27. Qb2 {[%clk 0:00:13]}  Qc4 {[%clk 0:00:20]} 28. Kd2 {[%clk 0:00:11]}  Bb4 {[%clk 0:00:20]} 29. Be2 {[%clk 0:00:08]}  Rc2+ {[%clk 0:00:20]} 30. Kd1 {[%clk 0:00:05]}  Qxe2# {[%clk 0:00:20]} 0-1


[Site "https://www.chess.com"]